bitfinex/quotes_ETHUSD_20250112
["timestamp","ask_amount","ask_price","bid_price","bid_amount"]
[1736721046938,2.61191276,3241.9,3241.7,2.15934]
[1736721047415,2.61191276,3241.9,3241.8,2.96189]
[1736721047626,2.61191276,3241.9,3241.8,3.2611635]
[1736721048011,2.61191276,3241.9,3241.8,5.9547835]
[1736721048741,2.61191276,3241.9,3241.8,5.9697835]
[1736721049100,2.61191276,3242.2,3241.9,2.15917]
[1736721049301,2.61191276,3242.2,3241.9,2.1900121]
[1736721049524,2.61191276,3242.2,3242.0,5.06478856]
[1736721049724,2.61191276,3242.2,3242.1,5.0]
[1736721050215,2.61191276,3242.2,3242.0,0.33068856]
[1736721050412,2.61191276,3242.2,3242.1,4.33285]
[1736721051915,2.61191276,3242.2,3242.1,6.49194]
[1736721052115,2.61191276,3242.2,3242.1,7.17420286]
[1736721052339,2.61191276,3242.2,3242.1,10.17420286]
[1736721052545,2.61191276,3242.2,3242.1,8.01511286]
[1736721054166,3.44151276,3242.2,3242.1,0.68226286]
[1736721054364,3.44151276,3242.2,3242.0,0.56168856]
[1736721054365,3.44151276,3242.2,3242.0,0.231]
[1736721055060,3.44151276,3242.2,3241.8,0.231]
[1736721055366,2.61191276,3241.9,3241.8,0.231]
[1736721056782,2.61191276,3241.9,3241.8,7.39029]
[1736721058024,2.61191276,3241.9,3241.8,4.10035]
[1736721058231,2.61191276,3241.9,3241.8,4.255604]
[1736721058842,2.61191276,3242.5,3242.4,2.93789]
[1736721059040,2.61191276,3242.8,3242.7,2.0]
[1736721059279,2.61191276,3243.1,3243.0,2.15849]
[1736721059579,2.61191276,3243.1,3243.0,11.196739]
[1736721060281,2.61191276,3243.4,3243.3,2.17329]
[1736721060469,2.61191276,3243.4,3243.3,10.17329]
[1736721064672,2.61191276,3244.8,3243.3,10.17329]
[1736721064673,0.781,3244.8,3244.3,0.0075]
[1736721064877,2.61191276,3244.6,3244.4,0.5315]
[1736721065052,0.781,3244.8,3244.4,3.5315]
[1736721065387,2.61191276,3244.5,3244.4,3.5315]
[1736721065586,2.61191276,3244.5,3244.4,8.36753]
[1736721066576,2.61191276,3244.5,3244.4,10.52509]
[1736721069103,2.61191276,3244.5,3244.4,10.54009]
[1736721069313,2.61191276,3244.5,3244.4,10.54759]
[1736721070436,2.61191276,3244.8,3244.7,2.1573]
[1736721070729,2.61191276,3244.8,3244.7,11.76503]
[1736721071234,2.61191276,3244.8,3244.7,12.55313]
[1736721072439,2.61191276,3244.8,3244.7,21.48063]
[1736721072934,2.61191276,3245.2,3244.8,3.0225]
[1736721073134,2.61191276,3245.2,3245.0,2.15716]
[1736721073283,2.61191276,3245.2,3245.1,5.715716]
[1736721075987,2.61191276,3245.2,3245.1,5.949716]
[1736721076422,0.7637,3245.7,3245.1,8.106806]
[1736721076727,0.7725,3246.0,3245.2,3.03081005]
[1736721076922,2.61191276,3245.5,3245.4,2.15689]
[1736721077124,2.61191276,3245.5,3245.4,7.69066001]
[1736721077298,2.61191276,3245.9,3245.8,0.015]
[1736721077496,2.61191276,3245.9,3245.8,3.45714]
[1736721077709,2.61191276,3245.9,3245.8,5.61377]
[1736721077912,2.61191276,3245.9,3245.8,6.175897]
[1736721078626,2.61191276,3245.9,3245.8,9.175897]
[1736721079399,2.61191276,3246.2,3245.9,5.15651]
[1736721079600,2.61191276,3246.2,3246.0,5.0]
[1736721080133,2.61191276,3246.2,3246.1,3.0]
[1736721080336,0.7725,3246.8,3246.1,11.451058]
[1736721080542,2.61191276,3246.5,3246.3,2.15628]
[1736721080716,2.61191276,3246.5,3246.4,8.0]
[1736721082628,2.61191276,3246.5,3246.4,6.79717]
[1736721083147,3.42371276,3246.5,3246.4,3.79717]
[1736721083439,3.42371276,3246.5,3245.4,2.51877001]
[1736721083440,2.15631,3246.3,3245.8,0.234]
[1736721083628,2.61191276,3245.9,3245.2,2.157]
[1736721083826,2.61191276,3245.5,3245.3,0.234]
[1736721084029,0.8118,3245.4,3245.1,2.0]
[1736721084216,2.61191276,3245.2,3244.6,0.8184]
[1736721084419,2.61191276,3244.9,3244.7,2.67319]
[1736721084629,2.61191276,3244.9,3244.8,5.0]
[1736721084827,2.61191276,3244.9,3244.8,8.0]
[1736721085241,2.61191276,3244.9,3244.8,5.0]
[1736721085425,2.61191276,3244.9,3244.8,0.234]
[1736721086316,2.61191276,3244.9,3244.8,3.7656]
[1736721086516,2.61191276,3244.9,3244.8,1.154481]
[1736721087150,2.61191276,3244.9,3244.8,4.154481]
[1736721087349,2.61191276,3244.9,3244.8,7.617661]
[1736721087512,2.61191276,3244.9,3244.8,9.789951]
[1736721087952,0.8118,3245.4,3244.8,9.789951]
[1736721087953,2.61191276,3245.3,3244.9,3.0]
[1736721088153,2.61191276,3245.3,3245.1,2.15703]
[1736721088450,2.61191276,3245.3,3245.2,6.09767]
[1736721088645,2.61191276,3245.3,3245.2,7.15703]
[1736721090449,2.61191276,3245.3,3245.2,10.17203]
[1736721091125,2.61191276,3245.3,3245.2,10.17953]
[1736721091336,2.61191276,3245.3,3245.2,11.29538251]
[1736721093058,2.61191276,3245.9,3245.8,2.15663]
[1736721093354,2.61191276,3245.9,3245.8,7.39063]
[1736721093861,2.61191276,3245.9,3245.8,5.234]
[1736721094245,2.61191276,3245.9,3245.8,7.39063]
[1736721094552,2.61191276,3245.9,3245.8,8.1654393]
[1736721095428,3.42871276,3245.9,3245.8,1.0088093]
[1736721095629,3.42871276,3245.9,3245.2,3.27284251]
[1736721095819,0.8168,3245.9,3245.7,0.234]
[1736721097358,2.61191276,3245.8,3245.5,0.234]
[1736721097572,2.61191276,3245.6,3245.5,0.234]
[1736721098535,2.61191276,3245.6,3245.1,2.15707]
[1736721098750,2.61191276,3245.2,3245.1,2.15707]
[1736721098951,2.61191276,3245.2,3245.1,11.184997]
[1736721099184,2.61191276,3245.2,3245.1,6.184997]
[1736721099389,2.61191276,3245.2,3245.1,11.184997]
[1736721099749,2.61191276,3245.2,3245.1,8.142627]
[1736721100437,0.66311276,3245.2,3245.1,8.142627]
[1736721100642,2.61191276,3245.2,3245.1,8.142627]
[1736721101084,2.61191276,3245.2,3245.1,4.027927]
[1736721101241,2.61191276,3245.2,3245.1,3.234]
[1736721105663,2.61191276,3245.2,3245.1,3.0]
[1736721120095,2.42826264,3245.2,3245.1,3.0]
[1736721120297,1.92293837,3245.2,3245.1,3.0]
[1736721126106,1.92293837,3245.2,3245.1,3.236]
[1736721127202,1.92293837,3245.2,3245.1,3.775316]
[1736721129174,2.61191276,3245.2,3245.1,6.716806]
[1736721129379,1.89516341,3245.2,3245.1,11.716806]
[1736721129922,1.71749183,3245.2,3245.1,11.716806]
[1736721131794,0.71246727,3245.2,3245.1,11.716806]
[1736721133219,0.71246727,3245.2,3245.1,11.739306]
[1736721133912,0.71246727,3245.2,3245.1,11.716806]
[1736721134114,0.71246727,3245.2,3245.1,10.932406]
[1736721137199,0.71246727,3245.2,3245.1,10.696406]
[1736721137495,0.71246727,3245.2,3245.1,10.927406]
[1736721137692,1.53276727,3245.2,3245.1,8.770316]
[1736721137898,1.53276727,3245.2,3245.1,3.770316]
[1736721143029,0.8203,3245.2,3245.1,5.972266]
[1736721143331,2.61191276,3245.2,3245.1,5.972266]
[1736721145222,3.40711276,3245.2,3245.1,5.972266]
[1736721145719,3.40711276,3245.2,3245.1,3.770316]
[1736721146217,3.40711276,3245.2,3245.1,0.231]
[1736721146416,3.40711276,3245.2,3244.9,0.231]
[1736721146622,2.61191276,3245.0,3244.9,0.231]
[1736721146929,5.22382552,3245.0,3244.3,0.7942]
[1736721147131,3.40711276,3244.6,3244.2,1.233723]
[1736721147333,2.61191276,3244.3,3243.8,2.15794]
[1736721147650,0.7952,3244.6,3243.6,5.14460462]
[1736721147856,0.61247342,3244.8,3243.6,5.14460462]
[1736721147857,0.7952,3244.2,3243.6,3.91065162]
[1736721148000,2.15802,3243.7,3243.6,3.91065162]
[1736721148204,2.95322,3243.7,3243.6,3.91065162]
[1736721148413,3.248542,3243.7,3243.6,3.91065162]
[1736721148618,12.02236752,3243.7,3243.6,3.91065162]
[1736721148817,12.02986752,3243.7,3243.6,3.76906722]
[1736721149021,2.15855,3243.0,3242.7,0.231]
[1736721149266,8.17764552,3242.8,3242.7,0.231]
[1736721151024,8.17764552,3242.8,3242.1,0.231]
[1736721151224,5.22382552,3242.2,3242.0,0.231]
[1736721151443,5.22382552,3242.2,3241.6,0.7942]
[1736721151608,2.61191276,3241.8,3241.7,0.231]
[1736721151807,3.40711276,3242.2,3241.7,0.231]
[1736721152015,2.61191276,3241.8,3241.7,0.231]
[1736721153323,2.61191276,3241.8,3241.3,0.7942]
[1736721153642,3.40711276,3242.2,3241.4,0.231]
[1736721154131,3.40711276,3242.2,3241.4,0.539068]
[1736721154332,3.40711276,3242.2,3241.5,0.231]
[1736721156107,2.61191276,3241.6,3241.5,0.231]
[1736721156314,3.40711276,3242.2,3241.5,0.231]
[1736721156514,2.61191276,3241.6,3241.5,0.231]
[1736721159936,3.36191276,3241.6,3241.2,3.0]
[1736721160128,0.75,3241.6,3241.1,3.91065162]
[1736721160445,0.75,3241.6,3241.1,4.14165162]
[1736721160915,0.75,3241.6,3241.1,4.55581678]
[1736721161116,2.61191276,3241.2,3241.1,7.55581678]
[1736721161311,1.9997457,3241.2,3241.1,7.55581678]
[1736721161507,1.05976238,3241.2,3241.1,7.55581678]
[1736721164928,1.05976238,3241.2,3241.1,7.32481678]
[1736721165129,1.05976238,3241.2,3241.1,7.55581678]
[1736721167042,1.05976238,3241.2,3241.1,4.14165162]
[1736721167228,1.05976238,3241.2,3241.1,3.91065162]
[1736721167432,1.05976238,3241.2,3241.1,4.14065162]
[1736721169096,1.05976238,3241.2,3241.1,3.91065162]
[1736721181071,1.05976238,3241.2,3241.1,3.85495162]
[1736721181274,1.86646238,3241.2,3241.1,3.73105162]
[1736721181480,1.86646238,3241.2,3241.1,3.61085162]
[1736721181678,1.86646238,3241.2,3241.1,3.39705162]
[1736721182652,1.9488,3241.8,3241.2,2.15967]
[1736721182869,1.9488,3241.8,3241.5,2.15948]
[1736721183061,1.9488,3241.8,3241.2,3.03835228]
[1736721183270,1.9488,3241.8,3241.5,2.15944]
[1736721183552,1.9488,3241.8,3241.6,0.296504]
[1736721183754,1.9488,3241.8,3241.7,6.68958]
[1736721183998,1.9488,3241.8,3241.7,7.46718]
[1736721184951,1.4007,3241.8,3241.7,12.48218]
[1736721186186,1.4007,3241.8,3241.7,12.48968]
[1736721186490,1.4007,3241.8,3241.7,13.7607984]
[1736721189359,0.34177541,3241.8,3241.7,16.8542984]
[1736721189789,0.04272192,3241.8,3241.7,16.8542984]
[1736721190599,0.04272192,3241.8,3241.7,25.7742984]
[1736721192476,2.61191276,3243.4,3243.0,2.16599]
[1736721192777,2.61191276,3243.4,3243.1,7.368889]
[1736721193081,2.61191276,3243.4,3243.2,5.0]
[1736721194300,2.61191276,3243.7,3243.3,2.17325]
[1736721195778,2.61191276,3243.7,3243.4,2.91872]
[1736721196103,2.61191276,3243.7,3243.4,3.24292053]
[1736721196308,2.61191276,3244.0,3243.5,5.0]
[1736721196490,2.61191276,3244.0,3243.7,2.15796]
[1736721196666,0.8182,3244.5,3243.8,7.1804]
[1736721196667,2.61191276,3244.3,3243.8,7.1804]
[1736721196866,2.61191276,3244.3,3244.0,0.0075]
[1736721197071,2.61191276,3244.3,3244.0,2.19612294]
[1736721197280,2.61191276,3244.3,3244.1,5.0]
[1736721198015,0.8182,3244.7,3244.3,5.15762]
[1736721198016,2.61191276,3244.6,3244.3,5.15762]
[1736721198214,2.61191276,3244.6,3244.4,5.0]
[1736721199247,2.61191276,3244.9,3244.5,3.0]
[1736721200216,2.61191276,3244.9,3244.6,2.97742]
[1736721200435,2.61191276,3244.9,3244.2,4.16515]
[1736721200436,2.61191276,3244.9,3244.7,0.23]
[1736721206929,0.759,3244.8,3244.7,0.23]
[1736721207128,0.759,3244.8,3244.0,0.8253]
[1736721207314,2.61191276,3244.4,3244.1,0.23]
[1736721208422,2.61191276,3244.4,3244.2,3.34692]
[1736721208609,2.61191276,3244.4,3244.3,3.0]
[1736721210116,2.61191276,3244.4,3244.3,0.23]
[1736721210644,0.7559,3244.3,3243.7,0.7907]
[1736721210826,2.61191276,3244.0,3243.8,0.23]
[1736721211157,2.61191276,3244.0,3243.4,11.213372]
[1736721211158,2.61191276,3244.0,3243.4,3.076572]
[1736721211374,2.61191276,3243.7,3243.5,0.23]
[1736721211654,2.61191276,3243.7,3243.6,8.0]
[1736721213060,2.61191276,3244.0,3243.6,8.015]
[1736721213364,2.61191276,3244.0,3243.8,2.15792]
[1736721213569,2.61191276,3244.0,3243.9,5.0]
[1736721216530,2.61191276,3244.0,3243.9,7.16539]
[1736721217882,2.61191276,3244.0,3243.9,5.0]
[1736721218059,2.61191276,3244.0,3243.8,5.0]
[1736721218268,3.42521276,3244.0,3243.8,5.0]
[1736721218964,3.42521276,3244.0,3243.5,0.23]
[1736721219159,3.42521276,3244.0,3243.4,3.0075]
[1736721219345,2.61191276,3243.7,3243.5,0.23]
[1736721219551,2.61191276,3243.7,3243.0,0.7734]
[1736721219883,2.61191276,3243.3,3243.0,0.7734]
[1736721220083,2.61191276,3243.3,3243.2,3.0]
[1736721220276,2.61191276,3243.3,3243.2,7.97597]
[1736721221361,2.61191276,3243.3,3243.2,8.20597]
[1736721223076,2.53584829,3243.3,3243.2,8.20597]
[1736721223396,2.53584829,3243.3,3243.2,7.97597]
[1736721223587,2.53584829,3243.3,3243.2,8.20597]
[1736721224291,2.28584829,3243.3,3243.2,8.20597]
[1736721227772,2.61191276,3243.6,3243.2,9.319748]
[1736721227978,2.61191276,3244.2,3243.7,0.0075]
[1736721228176,2.61191276,3244.2,3244.0,2.15778]
[1736721228489,2.61191276,3244.2,3244.1,2.38776]
[1736721229222,2.61191276,3244.2,3244.1,7.38776]
[1736721231774,2.61191276,3244.2,3244.1,5.23]
[1736721236375,2.61191276,3244.2,3244.1,9.044702]
[1736721236821,5.57921276,3244.2,3243.4,0.23]
[1736721237114,2.1583,3243.3,3242.2,2.0]
[1736721237312,2.61191276,3242.8,3242.3,0.23]
[1736721237615,3.36931276,3242.8,3242.3,0.668902]
[1736721237779,2.61191276,3242.5,3241.9,0.8183]
[1736721237979,2.61191276,3242.2,3242.0,0.23]
[1736721238907,2.61191276,3242.2,3242.1,0.23]
[1736721239303,2.61191276,3242.2,3241.5,6.47848]
[1736721239535,2.61191276,3241.9,3241.6,3.245]
[1736721239705,2.61191276,3241.9,3241.6,1.217348]
[1736721239902,2.61191276,3241.9,3241.5,4.319]
[1736721240106,2.61191276,3241.9,3241.6,3.23]
[1736721240536,2.61191276,3241.9,3241.7,3.60877]
[1736721240743,2.61191276,3241.9,3241.6,3.23]
[1736721240744,2.61191276,3241.9,3241.6,0.23]
[1736721245563,2.61191276,3241.9,3241.7,3.52473]
[1736721247827,2.61191276,3241.9,3241.7,6.491463]
[1736721248035,2.61191276,3241.9,3241.8,5.0]
[1736721248951,2.61191276,3242.2,3241.9,0.0225]
[1736721249150,2.61191276,3242.5,3242.2,0.015]
[1736721249363,2.61191276,3242.5,3242.3,2.15892]
[1736721249532,2.61191276,3242.5,3242.4,5.23]
[1736721249728,2.61191276,3242.5,3242.4,7.38889]
[1736721250649,2.61191276,3242.5,3242.4,7.39639]
[1736721251169,0.8237,3243.0,3242.4,7.39639]
[1736721251471,2.61191276,3242.7,3242.4,2.39639]
[1736721251672,2.61191276,3243.0,3242.6,2.15875]
[1736721251840,2.61191276,3243.0,3242.7,5.0]
[1736721252166,2.61191276,3243.0,3242.6,5.0]
[1736721252672,2.61191276,3243.0,3242.5,1.0630032]
[1736721252673,2.61191276,3242.7,3242.5,0.2613032]
[1736721252871,2.61191276,3242.7,3242.6,5.26576732]
[1736721253529,0.7664,3243.4,3242.6,7.28826732]
[1736721253530,2.61191276,3243.0,3242.6,7.28826732]
[1736721253733,2.61191276,3243.0,3242.7,2.18115]
[1736721254471,2.61191276,3243.0,3242.8,5.0]
[1736721254630,2.61191276,3243.0,3242.9,0.718115]
[1736721254827,2.61191276,3243.0,3242.9,5.718115]
[1736721255432,2.61191276,3243.3,3242.9,5.718115]
[1736721255778,2.61191276,3243.3,3243.0,0.0075]
[1736721256454,2.61191276,3243.3,3242.9,0.015]
[1736721256660,2.61191276,3243.3,3243.0,5.0]
[1736721256856,2.61191276,3243.3,3243.1,0.72043826]
[1736721257062,2.61191276,3243.3,3243.2,3.85537]
[1736721257774,2.61191276,3243.9,3243.3,2.16579]
[1736721257945,2.61191276,3243.9,3243.5,0.015]
[1736721258270,2.61191276,3243.9,3243.7,0.0075]
[1736721258474,2.61191276,3244.2,3243.8,3.591777]
[1736721258771,2.61191276,3244.2,3244.0,0.0075]
[1736721258962,2.61191276,3244.2,3244.1,5.229]
[1736721262477,2.61191276,3244.5,3244.2,2.17269]
[1736721262774,2.61191276,3244.5,3244.3,5.822759]
[1736721263078,2.61191276,3244.5,3244.4,5.0]
[1736721263288,2.61191276,3244.5,3244.4,5.0075]
[1736721264143,2.61191276,3244.8,3244.4,5.0075]
[1736721264338,2.61191276,3244.8,3244.5,5.0]
[1736721264751,2.61191276,3244.8,3244.5,5.7987839]
[1736721264972,2.61191276,3244.8,3244.6,5.0]
[1736721267384,2.61191276,3244.8,3244.7,0.0075]
[1736721267590,2.61191276,3244.8,3244.7,5.0075]
[1736721272488,2.61191276,3244.8,3244.7,5.0]
[1736721272685,2.61191276,3244.8,3244.5,2.7987839]
[1736721272686,2.61191276,3244.8,3244.6,5.0]
[1736721273994,2.61191276,3244.8,3244.6,2.35886]
[1736721274195,0.8082,3244.7,3244.6,0.229]
[1736721276004,0.8082,3244.7,3244.0,0.0075]
[1736721276169,0.8082,3244.7,3244.5,0.229]
[1736721276367,2.61191276,3244.6,3244.5,0.229]
[1736721276768,2.61191276,3244.6,3244.1,0.50075]
[1736721276967,2.61191276,3244.6,3244.2,0.229]
[1736721281182,2.61191276,3244.3,3244.2,0.229]
[1736721281383,2.61191276,3244.3,3244.2,5.177075]
[1736721288102,2.61191276,3244.6,3244.2,5.177075]
[1736721288306,2.61191276,3244.6,3244.3,5.0]
[1736721295432,0.55,3244.8,3244.3,5.0]
[1736721295594,0.55,3244.6,3244.2,0.601975]
[1736721295808,0.55,3244.6,3244.3,5.3260425]
[1736721296019,0.55,3244.6,3244.4,5.0]
[1736721298257,2.61191276,3244.7,3244.4,7.15756]
[1736721298410,2.61191276,3244.7,3244.5,5.0]
[1736721299129,2.61191276,3244.7,3244.6,2.15743]
[1736721299322,2.61191276,3244.7,3244.6,8.149393]
[1736721304737,2.61191276,3245.0,3244.6,8.149393]
[1736721304937,2.61191276,3245.0,3244.7,5.0]
[1736721306861,0.55,3244.9,3244.7,5.0]
[1736721308162,0.55,3244.9,3244.8,0.7566]
[1736721308364,0.55,3244.9,3244.8,6.6471993]
[1736721309469,0.55,3245.0,3244.8,6.6471993]
[1736721309662,0.55,3245.0,3244.9,5.0]
[1736721310966,2.61191276,3245.4,3244.9,5.0]
[1736721311285,2.61191276,3245.4,3245.0,2.38416]
[1736721311480,0.55,3245.3,3245.1,5.74149736]
[1736721311783,0.55,3245.3,3245.2,5.0]
[1736721314593,1.3845,3245.3,3244.4,2.0]
[1736721314767,0.827,3245.3,3244.7,0.227]
[1736721314985,2.71467,3245.0,3244.7,0.227]
[1736721315707,0.55,3244.8,3244.7,0.227]
[1736721315851,1.3604,3244.8,3244.7,0.227]
[1736721316787,1.3604,3244.8,3244.0,3.7611]
[1736721316949,1.3604,3244.8,3244.6,0.227]
[1736721317547,1.2604,3244.8,3244.6,0.227]
[1736721322869,1.2604,3244.8,3244.0,0.7611]
[1736721322870,0.55,3244.6,3244.0,0.7611]
[1736721323075,2.61191276,3244.2,3244.1,0.227]
[1736721323270,2.61191276,3244.2,3244.1,5.227]
[1736721323485,2.61191276,3244.2,3244.1,6.241592]
[1736721325495,2.61191276,3244.2,3244.1,8.399352]
[1736721327001,2.61191276,3244.5,3244.4,2.98286]
[1736721327297,2.61191276,3244.8,3244.4,5.8253]
[1736721327499,2.61191276,3244.8,3244.6,2.15742]
[1736721327675,2.61191276,3244.8,3244.7,5.71882383]
[1736721327859,2.61191276,3244.8,3244.7,9.87618383]
[1736721328063,2.61191276,3245.1,3245.0,2.15716]
[1736721328281,2.61191276,3245.1,3245.0,2.38416]
[1736721328597,2.61191276,3245.1,3245.0,7.38416]
[1736721328902,2.61191276,3245.1,3245.0,8.197786]
[1736721332901,2.61191276,3245.1,3245.0,8.27608727]
[1736721333809,2.61191276,3245.4,3245.1,2.0]
[1736721334018,2.61191276,3245.4,3245.2,2.15701]
[1736721334212,2.61191276,3245.4,3245.2,7.23020157]
[1736721334520,2.61191276,3245.4,3245.3,5.60445508]
[1736721334917,2.61191276,3245.4,3245.3,5.67764665]
[1736721336219,2.61191276,3245.4,3245.3,6.45964665]
[1736721336709,2.61191276,3245.4,3245.3,8.61660665]
[1736721338731,0.62947958,3246.4,3245.5,4.15678]
[1736721338732,0.7587,3246.2,3245.5,4.15678]
[1736721338887,0.7587,3246.6,3245.8,2.15662]
[1736721339231,2.61191276,3246.2,3245.9,8.93472625]
[1736721339549,2.61191276,3246.2,3246.0,5.227]
[1736721339733,0.7587,3246.6,3246.1,5.0]
[1736721340028,2.61191276,3246.6,3246.2,0.5227]
[1736721340202,2.61191276,3246.6,3246.4,2.0]
[1736721340526,2.61191276,3246.6,3246.5,5.07251435]
[1736721344087,2.61191276,3246.6,3246.5,5.29951435]
[1736721348339,3.16191276,3246.6,3246.5,5.29951435]
[1736721348519,3.16191276,3246.6,3246.5,5.83254589]
[1736721348715,2.61191276,3246.9,3246.6,0.807]
[1736721348919,2.61191276,3246.9,3246.7,5.10269185]
[1736721349154,2.61191276,3246.9,3246.8,5.0]
[1736721349369,2.61191276,3246.9,3246.8,5.80657619]
[1736721349534,2.61191276,3246.9,3246.8,5.87839759]
[1736721349742,2.61191276,3247.2,3246.8,5.87839759]
[1736721349939,0.55,3247.1,3246.9,5.0]
[1736721350324,2.61191276,3247.2,3247.0,0.0718214]
[1736721350524,2.61191276,3247.2,3247.1,5.50718214]
[1736721350825,3.16191276,3247.2,3247.1,5.50718214]
[1736721351036,3.16191276,3247.2,3247.1,5.57900354]
[1736721352563,2.61191276,3247.2,3247.1,5.57900354]
[1736721353147,2.61191276,3247.5,3247.1,5.57900354]
[1736721353366,2.61191276,3247.5,3247.2,5.80427378]
[1736721353578,2.61191276,3247.5,3247.3,5.226]
[1736721353779,3.16191276,3247.5,3247.4,5.0]
[1736721354400,3.16191276,3247.5,3247.4,5.07030859]
[1736721354568,3.16191276,3247.5,3247.4,5.75976758]
[1736721355452,2.61191276,3247.5,3247.4,5.75976758]
[1736721356773,2.61191276,3247.5,3247.4,5.98576758]
[1736721358871,3.94481276,3247.5,3247.4,0.07030859]
[1736721359075,3.94481276,3247.5,3247.4,0.226]
[1736721359266,3.94481276,3247.5,3247.4,0.29617329]
[1736721360179,3.94481276,3247.5,3247.4,0.07017329]
[1736721360401,3.39481276,3247.5,3247.3,0.226]
[1736721360713,5.55032276,3247.5,3247.3,0.226]
[1736721360917,3.39481276,3247.5,3247.3,0.226]
[1736721361123,2.61191276,3247.5,3247.4,2.61769]
[1736721361298,2.61191276,3247.5,3247.4,2.97231188]
[1736721363834,0.61989929,3248.1,3247.5,2.0]
[1736721364125,2.61191276,3248.0,3247.6,5.03078767]
[1736721364285,2.61191276,3248.0,3247.7,6.59190431]
[1736721364615,2.61191276,3248.0,3247.8,5.0]
[1736721364783,0.62201031,3248.4,3247.9,2.0]
[1736721364983,3.23392307,3248.4,3248.1,0.8187]
[1736721365322,3.23392307,3248.4,3248.3,2.0]
[1736721365484,3.23392307,3248.4,3248.3,7.87434087]
[1736721366892,0.62201031,3248.4,3248.3,7.87434087]
[1736721367199,0.62201031,3248.4,3248.3,8.62974087]
[1736721368141,0.62201031,3248.4,3248.3,5.87434087]
[1736721368342,3.23392307,3248.4,3248.3,0.29587087]
[1736721368654,5.93882307,3248.4,3248.3,0.29587087]
[1736721369223,5.93882307,3248.4,3248.3,0.06987087]
[1736721369522,5.93882307,3248.4,3248.3,0.226]
[1736721372433,2.15521,3248.0,3247.4,0.284369]
[1736721372635,2.61191276,3247.7,3247.5,5.7544369]
[1736721372947,2.61191276,3247.7,3247.6,5.0]
[1736721373324,2.61191276,3248.0,3247.7,2.0]
[1736721373518,2.61191276,3248.0,3247.8,5.0]
[1736721373721,2.61191276,3248.0,3247.9,0.06548018]
[1736721373922,2.61191276,3248.0,3247.9,5.7720282]
[1736721377169,3.16191276,3248.3,3247.9,5.7720282]
[1736721377401,3.16191276,3248.3,3248.0,5.0]
[1736721377891,3.16191276,3248.3,3248.1,0.06548018]
[1736721378096,3.16191276,3248.3,3248.2,3.27459]
[1736721378473,3.16191276,3248.3,3247.9,0.70654802]
[1736721378474,3.16191276,3248.3,3248.0,5.0]
[1736721378795,5.31688276,3248.3,3248.0,5.5706548]
[1736721378992,5.31688276,3248.3,3248.1,5.06548018]
[1736721379163,5.31688276,3248.3,3248.1,0.06548018]
[1736721379587,5.31688276,3248.3,3247.7,2.0]
[1736721379767,5.31688276,3248.3,3247.8,5.0]
[1736721379768,2.61191276,3248.0,3247.8,5.0]
[1736721379989,2.61191276,3248.0,3247.9,0.7]
[1736721380333,2.61191276,3248.0,3247.9,5.7]
[1736721380534,0.62201031,3248.4,3248.0,0.7752]
[1736721380740,0.62201031,3248.4,3248.2,2.0]
[1736721381039,0.005,3248.4,3248.3,5.29148018]
[1736721381343,0.005,3248.4,3248.3,6.87660917]
[1736721381481,0.005,3248.4,3248.3,9.8458282]
[1736721383306,0.005,3248.4,3248.3,12.48389988]
[1736721383682,0.005,3248.4,3248.3,9.8458282]
[1736721384382,0.005,3248.4,3248.3,12.0007982]
[1736721384576,0.005,3248.4,3248.3,12.0157982]
[1736721385716,0.005,3248.4,3248.3,9.8458282]
[1736721386609,0.005,3248.4,3248.3,12.0007982]
[1736721388413,0.005,3248.4,3248.3,12.0157982]
[1736721389824,0.005,3248.4,3248.3,12.0232982]
[1736721390695,0.005,3248.4,3248.3,14.64271096]
[1736721391022,0.005,3248.4,3248.3,15.48234756]
[1736721391387,0.005,3248.4,3248.3,16.03234756]
[1736721391589,0.1651926,3250.0,3249.9,2.8089]
[1736721391811,0.1651926,3250.0,3249.9,3.31579]
[1736721392017,0.1651926,3250.0,3249.9,3.38019785]
[1736721392219,0.1651926,3250.0,3249.9,3.15419785]
[1736721392584,0.1651926,3250.0,3249.9,8.38019785]
[1736721393023,0.1651926,3250.0,3249.9,11.38019785]
[1736721396911,0.1651926,3250.0,3249.9,11.38769785]
[1736721397229,0.1651926,3250.0,3249.9,13.54910785]
[1736721398215,1.43174591,3251.1,3250.9,2.0]
[1736721398433,1.43174591,3251.1,3250.0,3.0]
[1736721398434,0.8022,3251.1,3251.0,5.0]
[1736721398739,2.95531,3251.1,3251.0,0.28704285]
[1736721399247,0.8022,3251.1,3251.0,0.28704285]
[1736721399427,0.8022,3251.1,3251.0,5.28704285]
[1736721400032,1.41856621,3251.1,3251.0,5.28704285]
[1736721400333,3.57167621,3251.1,3251.0,4.93809285]
[1736721401436,1.41856621,3251.1,3251.0,4.93809285]
[1736721401795,3.57167621,3251.1,3251.0,4.87705]
[1736721402129,3.57167621,3251.1,3251.0,3.98462285]
[1736721402430,1.41856621,3251.1,3251.0,3.98462285]
[1736721402930,3.57167621,3251.1,3251.0,3.98462285]
[1736721403510,3.57167621,3251.1,3251.0,3.75862285]
[1736721403711,3.57167621,3251.1,3251.0,2.52669285]
[1736721404409,3.57167621,3251.1,3251.0,0.28704285]
[1736721404800,3.57167621,3251.1,3251.0,0.226]
[1736721405297,3.57167621,3251.1,3251.0,0.28606606]
[1736721405498,3.57167621,3251.1,3251.0,0.226]
[1736721405923,3.57167621,3251.1,3251.0,4.29935]
[1736721406127,0.61636621,3251.1,3251.0,7.71601693]
[1736721406636,1.42206621,3251.1,3251.0,7.71601693]
[1736721407649,0.61636621,3251.1,3251.0,7.71601693]
[1736721410254,0.61636621,3251.1,3251.0,5.28608193]
[1736721410467,1.42206621,3251.1,3251.0,5.28608193]
[1736721410663,1.42206621,3251.1,3251.0,5.06008193]
[1736721410870,1.42206621,3251.1,3251.0,5.28608193]
[1736721411069,3.57517621,3251.1,3251.0,5.28608193]
[1736721411566,3.57517621,3251.1,3251.0,4.01183193]
[1736721411729,4.12517621,3251.1,3251.0,3.32913193]
[1736721411931,4.12517621,3251.1,3251.0,0.28608193]